[Event "98th Argentine Championship 2023"]
[Site "Buenos Aires"]
[Date "2023.10.29"]
[Round "1.5"]
[White "Peralta, Fernando"]
[Black "Miranda, Rafael"]
[Result "1-0"]
[ECO "D87"]
[WhiteElo "2580"]
[BlackElo "2343"]
[Annotator "TA"]
[PlyCount "89"]
[EventDate "2023.10.27"]
[EventType "tourn"]
[EventCountry "ARG"]
[SourceTitle "playchess.com"]
[Source "ChessBase"]
[SourceQuality "1"]
[TimeControl "40/5400+30:1800+30"]

{[%evp 19,89,8,10,0,23,0,10,0,0,0,11,18,47,20,20,16,16,18,37,18,48,34,87,85,82,93,160,164,168,158,154,159,149,156,181,167,158,155,155,141,202,196,214,181,278,276,355,359,358,358,358,358,358,358,357,348,379,383,383,0,341,0,381,380,386,386,377,349,460,437,491,481]} 1. d4 {[%emt 0:00:08]} Nf6 {[%emt 0:00:13]} 2. c4 {[%emt 0:00:08]} g6 {[%emt 0:00:22]} 3. Nc3 {[%emt 0:00:07]} d5 {[%emt 0:00:24]} 4. cxd5 {[%emt 0:00:06]} Nxd5 {[%emt 0:00:06]} 5. e4 {[%emt 0:00:04]} Nxc3 {[%emt 0:00:07]} 6. bxc3 {[%emt 0:00:02]} Bg7 {[%emt 0:00:08]} 7. Bc4 {[%emt 0:00:04]} c5 {[%emt 0:00:46]} 8. Ne2 {[%emt 0:00:07]} O-O {[%emt 0:00:12]} 9. O-O {[%emt 0:00:11]} Nc6 {[%emt 0:01:13]} 10. Be3 {[%emt 0:00:07]} b6 {[%emt 0:01:49]} 11. Rc1 {[%emt 0:03:02] D87: Exchange Grünfeld: Classical Line: Variations without ...cxd4.} Bb7 {[%emt 0:01:27]} 12. Qd2 {[%emt 0:00:08] 12.Bb5 is more advanced technology.} Rc8 {[%emt 0:21:43]} 13. Bb5 {[%emt 0:01:11] The position is equal.} ({But not} 13. dxc5 Qxd2 14. Bxd2 Ne5 $17) 13... cxd4 {[%emt 0:16:53]} 14. cxd4 {[%emt 0:00:19]} Qd6 {[%emt 0:00:15] [#]} 15. d5 $146 {[%emt 0:07:13]} ({Predecessor:} 15. Rfd1 Qb4 16. Qd3 e6 17. h4 Rfd8 18. Bg5 Nxd4 19. Bxd8 Rxd8 20. h5 Be5 21. a4 {½-½ Ding,L (2806)-Rapport,R (2764) Candidates Tournament 2022 (3)}) 15... Nb8 {[%emt 0:07:27][%cal Bc6b8,Bb8d7,Bd7c5][%mdl 32]} 16. Bd4 {[%emt 0:15:43]} Nd7 {[%emt 0:06:44]} 17. Bxg7 {[%emt 0:19:47]} Kxg7 {[%emt 0:00:02]} 18. Nd4 {[%emt 0:08:57]} Nc5 {[%emt 0:02:51]} 19. Rfe1 {[%emt 0:08:18] Black is weak on the light squares} Kg8 {[%emt 0:15:13][%cal Oc5e4]} 20. Rcd1 {[%emt 0:09:20]} (20. Qh6 {seems wilder.} Qe5 21. Rcd1 e6 22. Bc6) 20... Rcd8 {[%emt 0:06:14]} (20... e5 $14) 21. Bc6 $16 {[%emt 0:09:20] White now steadily converts the win.} Bxc6 {[%emt 0:04:42]} 22. Nxc6 {[%emt 0:00:16]} Rd7 {[%emt 0:01:25]} (22... Ra8 $142) 23. e5 {[%emt 0:00:26] White is more active.} Qxc6 {[%emt 0:00:23]} 24. dxc6 {[%emt 0:00:04]} Rxd2 {[%emt 0:00:03]} 25. Rxd2 $18 {[%emt 0:00:04][%mdl 4096] [#] Endgame Strongly threatening Red1. KRR-KRN} Rc8 {[%emt 0:00:08]} 26. Rc1 {[%emt 0:10:36]} a5 {[%emt 0:00:48]} 27. g3 {[%emt 0:03:59]} Rxc6 {[%emt 0:01:23]} 28. Kg2 {[%emt 0:00:05]} Kg7 {[%emt 0:01:22]} 29. f4 {[%emt 0:00:30]} Rc7 {[%emt 0:02:28]} (29... h5 $16 30. Kf3 f6 31. exf6+ Kxf6) 30. Kf3 {[%emt 0:00:50]} Rb7 {[%emt 0:01:32]} 31. Rd5 {[%emt 0:02:14]} f5 {[%emt 0:03:05]} (31... Rc7 {was worth a try.} 32. Rd8 Rc6) 32. exf6+ {[%emt 0:00:45]} exf6 {[%emt 0:00:57]} 33. Rb1 {[%emt 0:00:46][%cal Od5c5] And now Rxc5! would win.} Nd7 {[%emt 0:00:59]} 34. Rxa5 {[%emt 0:00:18][%mdl 64] [#] Pin} Rc7 {[%emt 0:00:06]} 35. Rd5 {[%emt 0:00:35]} Kf7 {[%emt 0:00:19]} 36. Rd2 {[%emt 0:00:43]} Ra7 {[%emt 0:00:58]} 37. Rbb2 {[%emt 0:01:01]} Ke7 {[%emt 0:00:41]} 38. Re2+ {[%emt 0:00:17]} Kf7 {[%emt 0:00:07]} 39. Red2 $2 {[%emt 0:00:24]} ({Better is} 39. Rec2 $18) 39... Ke6 $2 {[%emt 0:00:19][%mdl 8192]} (39... Ke7 $1 $11 40. Rd3 f5 41. Re2+ Kf7) 40. Re2+ {[%emt 0:00:00]} Kf7 {[%emt 0:00:00]} 41. Rec2 {[%emt 0:00:50]} Ke7 {[%emt 0:03:13]} 42. Rc6 {[%emt 0:01:32]} Ra3+ {[%emt 0:03:34]} 43. Kg2 {[%emt 0:00:35]} Rd3 {[%emt 0:00:24]} 44. Re2+ {[%emt 0:02:03]} Kd8 {[%emt 0:00:48]} 45. Rce6 {[%emt 0:29:45] Weighted Error Value: White=0.28 (precise) /Black=0.34} 1-0

[Event "98th Argentine Championship 2023"]
[Site "Buenos Aires"]
[Date "2023.10.30"]
[Round "2.1"]
[White "Acosta, Pablo Ismael"]
[Black "Krysa, Leandro"]
[Result "1/2-1/2"]
[ECO "E04"]
[WhiteElo "2482"]
[BlackElo "2546"]
[Annotator "TA"]
[PlyCount "60"]
[EventDate "2023.10.27"]
[EventType "tourn"]
[EventCountry "ARG"]
[SourceTitle "playchess.com"]
[Source "ChessBase"]
[SourceQuality "1"]
[TimeControl "40/5400+30:1800+30"]

{[%evp 13,60,10,0,0,6,0,23,24,21,10,14,0,0,0,0,0,0,0,0,-8,-14,-17,-22,-7,-21,-18,-18,-26,0,0,0,0,0,-60,-64,-149,-148,-147,-156,-168,0,0,0,-72,-80,-42,-45,-71,-45]} 1. d4 {[%emt 0:00:09]} Nf6 {[%emt 0:00:17]} 2. Nf3 {[%emt 0:00:06]} d5 {[%emt 0:00:20]} 3. c4 {[%emt 0:00:21]} e6 {[%emt 0:00:36]} 4. g3 {[%emt 0:02:29]} dxc4 {[%emt 0:01:50]} 5. Bg2 {[%emt 0:00:06]} Nbd7 {[%emt 0:03:21]} 6. O-O {[%emt 0:03:06]} c6 {[%emt 0:00:49]} 7. Qc2 {[%emt 0:04:05]} b5 {[%emt 0:01:54]} 8. b3 {[%emt 0:01:05] E04: Open Catalan: 5 Nf3.} cxb3 {[%emt 0:02:10]} 9. Qxc6 {[%emt 0:00:54]} Rb8 {[%emt 0:01:07]} 10. axb3 {[%emt 0:01:49] White has an edge.} Bb7 {[%emt 0:01:34]} 11. Qc2 {[%emt 0:00:11]} Rc8 {[%emt 0:04:56]} 12. Qd3 {[%emt 0:02:30]} a6 {[%emt 0:01:49] [#]} 13. Ng5 $146 {[%emt 0:02:53]} ({Predecessor:} 13. Nbd2 Be7 14. Bb2 O-O 15. Rfc1 Qb6 16. e4 Rfd8 17. Bc3 Nb8 18. Ne5 Bd6 19. Nef3 {0-1 Di Benedetto,E (2378)-Dvirnyy,D (2514) ITA-ch 81st Cagliari 2022 (7)}) 13... Bxg2 {[%emt 0:14:57]} 14. Kxg2 {[%emt 0:00:06]} Qb6 {[%emt 0:00:04]} 15. e4 {[%emt 0:03:40]} h6 {[%emt 0:01:20]} 16. Nf3 {[%emt 0:00:53]} Be7 {[%emt 0:02:05]} 17. Nbd2 {[%emt 0:09:25]} O-O {[%emt 0:01:56]} 18. Ba3 {[%emt 0:03:34]} Bxa3 {[%emt 0:07:33]} 19. Rxa3 {[%emt 0:00:06]} Nb8 {[%emt 0:02:13]} 20. Rfa1 {[%emt 0:21:06]} b4 {[%emt 0:11:27]} 21. Ra4 {[%emt 0:05:23]} Rc3 {[%emt 0:02:52] Prevents Nc4.} 22. Qb1 {[%emt 0:00:06]} Qb7 {[%emt 0:03:03]} 23. e5 {[%emt 0:06:20]} (23. Ng1 $11) 23... Nd5 $15 {[%emt 0:01:32]} 24. Ne4 {[%emt 0:00:48] [#]} (24. Qe4 $15) 24... Rfc8 $1 $17 {[%emt 0:12:06][%cal Oc3f3] Strongly threatening ...Rxf3!} 25. Nfd2 {[%emt 0:05:57]} Rc2 $1 {[%emt 0:05:50][%cal Oc2d2] Threatens to win with ...Rxd2!} 26. Kh3 {[%emt 0:04:39] [#]} Rxd2 {[%emt 0:09:42]} 27. Nxd2 $11 {[%emt 0:00:11] Black must now prevent Ne4.} Nc3 {[%emt 0:00:34][%csl LRa4,LRb1] Prevents Ne4. Excellent horsemanship.} 28. Qe1 {[%emt 0:01:14]} (28. Qd3 $1 $11 {keeps the balance.}) 28... Nxa4 $17 {[%emt 0:01:08]} 29. Rxa4 {[%emt 0:00:18]} Nc6 {[%emt 0:02:17]} 30. Ne4 {[%emt 0:00:54] Nd6 would be deadly.} Rd8 {[%emt 0:01:44] Weighted Error Value: White=0.17 (very precise) /Black=0.11 (very precise)} 1/2-1/2

[Event "98th Argentine Championship 2023"]
[Site "Buenos Aires"]
[Date "2023.10.30"]
[Round "2.3"]
[White "Francisco Guecamburu, Candela Be"]
[Black "Peralta, Fernando"]
[Result "1/2-1/2"]
[ECO "B13"]
[WhiteElo "2345"]
[BlackElo "2580"]
[Annotator "TA"]
[PlyCount "61"]
[EventDate "2023.10.27"]
[EventType "tourn"]
[EventCountry "ARG"]
[SourceTitle "playchess.com"]
[Source "ChessBase"]
[SourceQuality "1"]
[TimeControl "40/5400+30:1800+30"]

{[%evp 9,61,11,20,7,7,2,5,3,12,0,0,0,0,0,0,0,0,0,9,7,7,7,7,7,2,-10,-5,-11,0,0,0,0,0,0,0,0,0,0,0,0,0,0,0,0,0,0,6,0,0,0,8,0,0,0]} 1. e4 {[%emt 0:00:23]} c6 {[%emt 0:00:10]} 2. d4 {[%emt 0:00:22]} d5 {[%emt 0:00:04]} 3. exd5 {[%emt 0:00:08]} cxd5 {[%emt 0:00:13]} 4. Nf3 {[%emt 0:00:08]} Nf6 {[%emt 0:05:34]} 5. Ne5 {[%emt 0:00:14]} Nc6 {[%emt 0:00:17] The position is equal.} 6. Bb5 {[%emt 0:00:43] B13: Caro-Kann: Exchange Variation and Panov-Botvinnik Attack.} Bd7 {[%emt 0:00:09]} 7. Nxd7 {[%emt 0:00:23]} Qxd7 {[%emt 0:00:04]} 8. c3 {[%emt 0:00:42]} a6 {[%emt 0:02:24]} 9. Bd3 {[%emt 0:01:08]} e5 {[%emt 0:00:34]} 10. dxe5 {[%emt 0:07:48]} Nxe5 {[%emt 0:00:13] [#]} 11. Bf4 $146 {[%emt 0:16:50]} ({Predecessor:} 11. O-O O-O-O 12. Bf4 Bd6 13. Bxe5 Bxe5 14. Qf3 Ne4 15. Bxe4 dxe4 16. Qxe4 Rhe8 17. Qc4+ {0-1 Stoleriu,G (2372)-Salem,A (2682) Titled Tuesday intern op 25th May blitz 2021 (7)}) 11... Nxd3+ {[%emt 0:04:24]} 12. Qxd3 {[%emt 0:00:11]} Qe6+ {[%emt 0:00:35]} 13. Qe2 {[%emt 0:12:18]} Bc5 {[%emt 0:02:27]} 14. Nd2 {[%emt 0:05:34]} O-O {[%emt 0:03:00]} 15. Qxe6 {[%emt 0:02:24]} fxe6 {[%emt 0:00:05]} 16. O-O {[%emt 0:00:18]} Nh5 {[%emt 0:38:28]} (16... Ng4 $5 17. Bg3 $8 Ne3 $11) 17. Be3 {[%emt 0:17:59]} Bxe3 {[%emt 0:01:40]} 18. fxe3 {[%emt 0:00:02]} Nf6 {[%emt 0:00:33]} 19. e4 {[%emt 0:05:01]} dxe4 {[%emt 0:06:03]} 20. Rae1 {[%emt 0:00:15]} Rad8 {[%emt 0:01:57]} 21. Rf2 {[%emt 0:04:51]} Rd3 {[%emt 0:23:08] [#] Hoping for ...e3.} 22. Rfe2 {[%emt 0:09:32]} Rfd8 {[%emt 0:00:43]} 23. Nxe4 {[%emt 0:02:19]} Nxe4 {[%emt 0:00:06]} 24. Rxe4 $11 {[%emt 0:00:05][%mdl 4096] Endgame KRR-KRR} Rd2 {[%emt 0:00:16]} 25. R1e2 {[%emt 0:03:59]} Rxe2 {[%emt 0:01:48]} 26. Rxe2 {[%emt 0:00:02] KR-KR} Kf7 {[%emt 0:00:10]} 27. Kf2 {[%emt 0:01:28]} Rd3 {[%emt 0:01:46]} 28. Re3 {[%emt 0:00:30]} Rd2+ {[%emt 0:00:06]} 29. Re2 {[%emt 0:00:04]} Rd3 {[%emt 0:01:19]} 30. Re3 {[%emt 0:00:06]} Rd2+ {[%emt 0:00:01]} 31. Re2 {[%emt 0:00:08] An uneventful encounter.   Weighted Error Value: White=0.02 (flawless) /Black=0.02 (flawless)} 1/2-1/2

[Event "98th Argentine Championship 2023"]
[Site "Buenos Aires"]
[Date "2023.10.31"]
[Round "3.4"]
[White "Peralta, Fernando"]
[Black "Gomez, Carlos David"]
[Result "1-0"]
[ECO "E42"]
[WhiteElo "2580"]
[BlackElo "2331"]
[Annotator "TA"]
[PlyCount "99"]
[EventDate "2023.10.27"]
[EventType "tourn"]
[EventCountry "ARG"]
[SourceTitle "playchess.com"]
[Source "ChessBase"]
[SourceQuality "1"]
[TimeControl "40/5400+30:1800+30"]

{[%evp 12,99,27,30,41,13,12,11,18,16,33,50,84,70,80,75,79,73,130,130,127,120,112,105,102,83,118,112,187,182,180,154,164,151,151,157,166,147,181,159,247,179,257,262,262,268,255,259,439,408,462,450,462,454,480,473,477,474,822,818,739,368,559,552,536,545,506,358,343,342,356,345,335,323,361,358,516,514,789,527,540,527,527,527,527,454,1029,997,12850,5948]} 1. d4 {[%emt 0:00:06]} Nf6 {[%emt 0:00:14]} 2. c4 {[%emt 0:00:05]} e6 {[%emt 0:00:06]} 3. Nc3 {[%emt 0:00:25]} Bb4 {[%emt 0:00:07]} 4. e3 {[%emt 0:00:05]} c5 {[%emt 0:00:11]} 5. Nge2 {[%emt 0:01:21]} d5 {[%emt 0:00:20]} 6. a3 {[%emt 0:00:46]} Ba5 {[%emt 0:00:15]} 7. dxc5 {[%emt 0:01:00]} (7. cxd5 {feels hotter.} cxd4 8. Nxd4 Nxd5 9. b4) 7... dxc4 {[%emt 0:00:09] E42: Nimzo-Indian: Rubinstein: 4...c5 5 Ne2.} 8. Qxd8+ {[%emt 0:00:28]} (8. Bd2 $5 {[%cal Re2g3]}) 8... Kxd8 {[%emt 0:00:07]} 9. Bd2 {[%emt 0:03:56]} Nbd7 {[%emt 0:01:04] The position is equal.} 10. Ng3 {[%emt 0:12:13]} Nxc5 {[%emt 0:17:57] Hoping for ...Nb3.} 11. Bxc4 {[%emt 0:00:12] b4 is the strong threat.} Ncd7 {[%emt 0:04:16]} 12. Be2 {[%emt 0:08:42] [#]} h5 $146 {[%emt 0:07:33]} ({Predecessor:} 12... a6 13. O-O Bc7 14. Rac1 b5 15. Nce4 h6 16. Nxf6 gxf6 17. Rfd1 Bb7 18. Bc3 Be5 {1-0 Fridman,D (2590)-Meijers,V (2487) Riga op 2004 (7)}) 13. b4 {[%emt 0:07:13]} Bb6 {[%emt 0:01:23]} 14. O-O {[%emt 0:00:36]} Ne5 {[%emt 0:06:58]} (14... a5 $142) 15. Nge4 $16 {[%emt 0:16:00]} Ke7 {[%emt 0:22:33]} 16. Nxf6 {[%emt 0:03:15]} gxf6 {[%emt 0:00:29]} 17. Na4 {[%emt 0:01:10]} Bd8 {[%emt 0:00:10]} 18. f4 {[%emt 0:03:02]} Nd7 {[%emt 0:02:12]} 19. Rac1 {[%emt 0:02:50]} Rb8 {[%emt 0:06:44] [#]} (19... Nb6 $16) 20. b5 $1 $18 {[%emt 0:04:20]} Nb6 {[%emt 0:02:38]} 21. Nc5 {[%emt 0:06:32]} Kf8 {[%emt 0:04:37]} 22. a4 {[%emt 0:06:56]} f5 {[%emt 0:00:49]} 23. Bc3 {[%emt 0:02:06] White has more active pieces. The black rooks are badly placed.} f6 {[%emt 0:00:21]} 24. Bf3 {[%emt 0:02:46]} Be7 {[%emt 0:08:15]} 25. Bd4 {[%emt 0:06:56]} Kf7 {[%emt 0:01:08]} (25... Nd5 $16 {is a better defense.} 26. Rfd1 Kf7) 26. Rfd1 {[%emt 0:05:29]} Kg6 {[%emt 0:04:21]} (26... Nd5 $142 27. Nd3 b6) 27. e4 {[%emt 0:01:42]} fxe4 {[%emt 0:01:26]} 28. Bxe4+ {[%emt 0:00:12]} (28. Nxe4 Nd5 29. Bxa7 Ra8 $18) 28... Kg7 {[%emt 0:00:28]} 29. Bf3 {[%emt 0:02:38]} Nd5 $2 {[%emt 0:00:54] [#]} (29... Rd8 30. Bf2 (30. Bxh5 Nd5 $16) 30... Rxd1+ 31. Rxd1 Kg6) 30. f5 $1 {[%emt 0:00:47][%mdl 512]} e5 {[%emt 0:01:11]} (30... Nf4 31. Nxe6+) 31. Bf2 {[%emt 0:00:19] Black is weak on the light squares} ({Weaker is} 31. Bxd5 exd4 32. Nb3 (32. Rxd4 Rd8 $16) 32... Bd8 $16) (31. Bxe5 fxe5 32. Rxd5 Bxf5 $18) 31... Nf4 {[%emt 0:00:33]} 32. Nd7 {[%emt 0:00:43]} Ra8 {[%emt 0:00:09][%cal Oe5e4]} 33. Kf1 {[%emt 0:01:13]} Re8 {[%emt 0:05:20]} 34. Be4 {[%emt 0:00:44]} Ba3 {[%emt 0:01:22]} (34... Kf7 $142 35. Be3 h4) 35. Rc7 {[%emt 0:00:39]} Re7 {[%emt 0:00:21] [#]} 36. Nxf6 {[%emt 0:00:29]} Kxf6 {[%emt 0:01:05]} (36... Bxf5 {was necessary.} 37. Rxe7+ (37. Rxb7 Bxe4 38. Rxe7+ Kxf6 $17) 37... Bxe7) 37. Bh4+ {[%emt 0:00:11]} Kf7 {[%emt 0:00:12]} 38. Bxe7 {[%emt 0:00:07]} Bxe7 {[%emt 0:00:04]} 39. Rdc1 {[%emt 0:00:29]} Bxf5 {[%emt 0:00:50]} 40. Bxf5 {[%emt 0:00:00]} Nd5 {[%emt 0:00:00]} 41. Rc8 {[%emt 0:02:54]} ({Not} 41. Rxb7 Ne3+ 42. Ke2 Nxf5 $18) 41... Rxc8 {[%emt 0:01:55]} 42. Bxc8 {[%emt 0:00:39][%mdl 4096] Endgame KRB-KBN} b6 {[%emt 0:00:05]} 43. Bb7 {[%emt 0:01:55]} Ne3+ {[%emt 0:01:48]} (43... Nf6 $142 44. Rc7 Ke6 45. Bc8+ {[%mdl 64] Discovered Attack} Kd6) 44. Ke2 {[%emt 0:01:20] White is clearly winning.} Nf5 {[%emt 0:01:26]} (44... Ng4 $142 45. Rc7 Nf6) 45. Bd5+ {[%emt 0:00:39]} Kf6 {[%emt 0:01:07]} 46. Rc7 {[%emt 0:00:17]} Bc5 {[%emt 0:01:24]} 47. Rxa7 {[%emt 0:01:30]} Bg1 {[%emt 0:00:39]} 48. Kd3 {[%emt 0:01:05]} Bxh2 {[%emt 0:06:06]} (48... Nd6 $142 49. a5 bxa5) 49. Ra6 {[%emt 0:01:10]} Bg1 {[%emt 0:01:18]} 50. a5 {[%emt 0:00:11] Weighted Error Value: White=0.35/Black=0.36} 1-0

[Event "98th Argentine Championship 2023"]
[Site "Buenos Aires"]
[Date "2023.10.31"]
[Round "3.6"]
[White "Krysa, Leandro"]
[Black "Miranda, Rafael"]
[Result "1-0"]
[ECO "D94"]
[WhiteElo "2546"]
[BlackElo "2343"]
[Annotator "TA"]
[PlyCount "47"]
[EventDate "2023.10.27"]
[EventType "tourn"]
[EventCountry "ARG"]
[SourceTitle "playchess.com"]
[Source "ChessBase"]
[SourceQuality "1"]
[TimeControl "40/5400+30:1800+30"]

{[%evp 19,47,0,0,0,0,0,59,28,37,28,29,12,58,12,50,55,58,67,101,95,135,139,140,156,239,237,230,202,306,264]} 1. d4 {[%emt 0:00:09]} Nf6 {[%emt 0:00:08]} 2. c4 {[%emt 0:00:21]} g6 {[%emt 0:00:09]} 3. Nc3 {[%emt 0:00:13]} d5 {[%emt 0:00:09]} 4. Nf3 {[%emt 0:00:18]} Bg7 {[%emt 0:00:21]} 5. e3 {[%emt 0:00:33]} O-O {[%emt 0:03:52]} 6. cxd5 {[%emt 0:00:24]} Nxd5 {[%emt 0:00:11]} 7. Bc4 {[%emt 0:00:06]} Nb6 {[%emt 0:05:54]} 8. Bb3 {[%emt 0:00:16]} Nc6 {[%emt 0:07:37]} 9. O-O {[%emt 0:01:06]} e5 {[%emt 0:01:32]} 10. d5 {[%emt 0:00:16]} Na5 {[%emt 0:02:12]} 11. e4 {[%emt 0:00:26] D94: Grünfeld: 4 Nf3 Bg7 5 e3.} Bg4 {[%emt 0:05:53]} 12. h3 {[%emt 0:01:53]} Bd7 {[%emt 0:05:08]} (12... Nxb3 $11 13. axb3 Bxf3 14. Qxf3 a6) 13. Bg5 {[%emt 0:07:45] [#] White is slightly better.} Bf6 $146 {[%emt 0:01:35]} ({Predecessor:} 13... Qe8 14. Rc1 c5 15. d6 Nxb3 16. axb3 Bb5 17. Re1 f6 18. Be3 Rc8 19. b4 cxb4 {1-0 Gozzoli,Y (2522)-Petr,M (2526) Mitropa Cup 30th 2011 (9.1)}) 14. Bh6 {[%emt 0:16:30]} Re8 {[%emt 0:00:10]} 15. Qd3 {[%emt 0:15:13]} Qe7 {[%emt 0:12:37]} (15... Nxb3 $11 16. axb3 a6) 16. Be3 {[%emt 0:07:33]} (16. Bc2 $14) 16... Rec8 {[%emt 0:14:03]} 17. Rfd1 {[%emt 0:09:34]} Nxb3 {[%emt 0:12:05]} 18. axb3 {[%emt 0:00:05]} c5 {[%emt 0:06:24]} 19. Nd2 {[%emt 0:14:14] White is more active.} Bg5 {[%emt 0:02:36]} 20. d6 {[%emt 0:05:35]} Qd8 {[%emt 0:00:23]} 21. Nc4 {[%emt 0:00:53]} Nxc4 {[%emt 0:00:11]} (21... Bxe3 $16 22. Nxe3 (22. Qxe3 Qf6 $16) 22... Bc6) 22. bxc4 $18 {[%emt 0:00:27]} Bxe3 {[%emt 0:05:07]} 23. Qxe3 {[%emt 0:00:19] Nd5 is the strong threat.} ({Less strong is} 23. fxe3 Qg5 $16) 23... Rc6 {[%emt 0:00:45]} (23... Be6 {was necessary.} 24. Nd5 Bxd5) 24. Nd5 {[%emt 0:06:35] Weighted Error Value: White=0.09 (flawless) /Black=0.31} 1-0

[Event "98th Argentine Championship 2023"]
[Site "Buenos Aires"]
[Date "2023.11.01"]
[Round "4.2"]
[White "Francisco Guecamburu, Candela Be"]
[Black "Krysa, Leandro"]
[Result "0-1"]
[ECO "B56"]
[WhiteElo "2345"]
[BlackElo "2546"]
[Annotator "TA"]
[PlyCount "98"]
[EventDate "2023.10.27"]
[EventType "tourn"]
[EventCountry "ARG"]
[SourceTitle "playchess.com"]
[Source "ChessBase"]
[SourceQuality "1"]
[TimeControl "40/5400+30:1800+30"]

{[%evp 12,98,33,12,25,8,6,28,10,-2,-2,0,0,0,2,-112,-113,-147,-137,-158,-171,-152,-150,-192,-200,-206,-190,-208,-208,-234,-217,-238,-236,-227,-221,-218,-216,-288,-278,-352,-233,-233,-246,-302,-232,-229,-231,-236,-233,-323,-323,-323,-306,-321,-314,-301,-280,-280,-280,-280,-280,-360,-279,-279,-277,-655,-656,-580,-566,-1008,-1016,-979,-979,-960,-914,-883,-812,-994,-834,-561,-453,-6295,-6079,-29979,-29980,-29980,-29980,-29979,-29979]} 1. e4 {[%emt 0:00:07]} c5 {[%emt 0:00:11]} 2. Nf3 {[%emt 0:00:08]} Nc6 {[%emt 0:00:15]} 3. d4 {[%emt 0:00:09]} cxd4 {[%emt 0:00:12]} 4. Nxd4 {[%emt 0:00:07]} Nf6 {[%emt 0:00:18]} 5. Nc3 {[%emt 0:00:08]} d6 {[%emt 0:00:12]} 6. Bb5 {[%emt 0:00:18]} Bd7 {[%emt 0:01:25]} 7. Be3 {[%emt 0:00:08]} g6 {[%emt 0:09:16] B56: Classical Sicilian: Unusual Lines.} 8. f3 {[%emt 0:00:29]} Bg7 {[%emt 0:02:30]} 9. Qd2 {[%emt 0:08:41]} O-O {[%emt 0:08:58] White has an edge.} 10. Nxc6 {[%emt 0:19:43]} bxc6 {[%emt 0:14:52]} 11. Bc4 {[%emt 0:05:31]} Qa5 {[%emt 0:01:20]} 12. O-O {[%emt 0:12:11]} Rab8 {[%emt 0:02:28] [#]} 13. b3 $146 {[%emt 0:11:59] [#]} (13. Rab1 $11) ({Predecessor:} 13. Bb3 Rb7 14. Rad1 Be6 15. Bxe6 fxe6 16. b3 Nd7 17. Ne2 Qxd2 18. Rxd2 c5 19. h3 {0-1 Grabner,J (2184)-Peters,A (2264) W-ch WS/M/048 email 2006}) 13... Ng4 $1 $17 {[%mdl 512]} 14. fxg4 {[%emt 0:20:51] Threatens to win with Bd4.} (14. Bd4 Ne5) 14... Bxc3 {[%emt 0:26:42]} 15. Qf2 {[%emt 0:00:14][%cal Rc4f7]} Bxa1 {[%emt 0:03:09]} ({Much weaker is} 15... Bxg4 $6 16. Bxf7+ Kg7 17. Bd4+ Bxd4 18. Qxd4+ Kh6 19. h3 $14) 16. Rxa1 {[%emt 0:02:38] [#]} Be6 $1 {[%emt 0:04:57] Strongly threatening ...Bxc4.} ({Weaker is} 16... Bxg4 17. Bh6 $17) 17. Bd3 {[%emt 0:02:08]} c5 {[%emt 0:03:10][%cal Bc6c5,Bc5c4][%mdl 32]} ({Worse is} 17... Bxg4 18. Bxa7 Ra8 19. Bb6 $17) 18. Bd2 {[%emt 0:03:44]} Qc7 {[%emt 0:02:04]} 19. Be2 {[%emt 0:03:19]} c4 {[%emt 0:02:02]} 20. Be3 {[%emt 0:00:07]} a5 {[%emt 0:02:00][%cal Oa5a4]} 21. Bd4 {[%emt 0:01:06]} cxb3 {[%emt 0:02:24]} 22. cxb3 {[%emt 0:00:15]} Rb4 {[%emt 0:01:09]} 23. Qe3 {[%emt 0:01:03]} Rc8 {[%emt 0:02:21]} 24. Ba6 {[%emt 0:02:20]} Ra8 {[%emt 0:00:57]} 25. Rc1 {[%emt 0:02:42]} Qd7 {[%emt 0:01:19]} 26. Be2 {[%emt 0:00:39]} Bxg4 {[%emt 0:02:35]} 27. Bc3 {[%emt 0:00:08] [#] Wards off Bxe2} Bxe2 $1 {[%emt 0:01:54]} 28. Bxb4 {[%emt 0:00:12]} axb4 {[%emt 0:00:10]} 29. Qxe2 $19 {[%emt 0:00:06][%mdl 4096] Endgame KQR-KQR} Qa7+ {[%emt 0:00:51]} 30. Kh1 {[%emt 0:00:40]} Qxa2 {[%emt 0:00:39]} 31. Qc4 {[%emt 0:00:37]} Qd2 {[%emt 0:02:11] Hoping for ...Ra2.} 32. Rf1 {[%emt 0:00:10]} e6 {[%emt 0:00:56] White must now prevent ...Ra2.} 33. Qc6 {[%emt 0:00:52]} Rf8 {[%emt 0:00:41]} 34. h3 {[%emt 0:01:56]} Qc3 {[%emt 0:02:08]} 35. Qxd6 {[%emt 0:01:52]} Qxb3 {[%emt 0:00:02]} 36. Qb6 {[%emt 0:00:39]} Qc4 {[%emt 0:01:02]} 37. Rb1 {[%emt 0:00:24]} Qxe4 {[%emt 0:00:11]} 38. Rxb4 {[%emt 0:00:04]} (38. Qxb4 Qxb4 39. Rxb4) 38... Qe1+ {[%emt 0:00:23]} 39. Kh2 {[%emt 0:00:02]} Qe5+ {[%emt 0:00:51]} 40. Kh1 {[%emt 0:00:00]} Ra8 {[%emt 0:00:00]} 41. Rb1 {[%emt 0:01:13]} Ra1 {[%emt 0:06:22]} 42. Rxa1 {[%emt 0:00:48]} Qxa1+ {[%emt 0:00:04] KQ-KQ} 43. Kh2 {[%emt 0:00:06]} h5 {[%emt 0:02:16]} 44. Qd6 {[%emt 0:02:58]} Kg7 {[%emt 0:00:58]} 45. Qc7 {[%emt 0:01:37]} Qd4 {[%emt 0:00:53]} 46. Qe7 {[%emt 0:00:46]} (46. Kh1 $142) 46... e5 {[%emt 0:02:45][%cal Be6e5,Be5e4][%mdl 32]} 47. h4 {[%emt 0:01:18]} e4 {[%emt 0:01:26] Black mates.} 48. g4 {[%emt 0:04:35]} Qf2+ {[%emt 0:01:10]} 49. Kh1 {[%emt 0:00:11]} Qf6 {[%emt 0:01:19] White got outplayed after the opening.   Weighted Error Value: White=0.48/Black=0.12 (very precise)} 0-1